bitfinex-derivatives/quotes_BTCF0:USTF0_20250805
["timestamp","ask_amount","ask_price","bid_price","bid_amount"]
[1754428581975,0.5428228,113700.0,113690.0,1.0130206]
[1754428582777,0.3669,113700.0,113690.0,1.0130206]
[1754428582970,0.3608,113700.0,113690.0,1.0130206]
[1754428583476,0.3608,113700.0,113690.0,1.2759206]
[1754428584367,0.6283052,113710.0,113700.0,0.2342728]
[1754428584571,0.9891052,113710.0,113700.0,0.3163628]
[1754428585573,0.9901052,113710.0,113700.0,0.3163628]
[1754428586575,1.45785053,113710.0,113700.0,0.3163628]
[1754428587072,1.45422053,113710.0,113700.0,0.3163628]
[1754428587272,0.7246,113710.0,113700.0,0.3163628]
[1754428587475,0.3608,113720.0,113710.0,0.1759073]
[1754428587678,0.3608,113720.0,113710.0,1.38797263]
[1754428587877,0.3608,113720.0,113710.0,2.60437263]
[1754428588380,0.6282459,113730.0,113720.0,0.3163314]
[1754428588574,0.9890459,113730.0,113720.0,0.3163314]
[1754428589077,0.9890459,113730.0,113720.0,0.3215279]
[1754428589279,0.9450761,113730.0,113720.0,0.3215279]
[1754428589480,0.9011069,113730.0,113720.0,0.3215279]
[1754428590380,0.9021069,113730.0,113720.0,0.3215279]
[1754428593879,1.36985223,113730.0,113720.0,0.2321614]
[1754428594084,1.36985223,113730.0,113720.0,0.2569214]
[1754428594280,1.36985223,113730.0,113720.0,0.3163314]
[1754428595484,0.9021069,113730.0,113720.0,0.3163314]
[1754428597882,0.9021069,113730.0,113720.0,0.3215722]
[1754428599291,1.36985223,113730.0,113720.0,0.3215722]
[1754428599693,0.9021069,113730.0,113720.0,0.3215722]
[1754428606893,0.72623,113730.0,113720.0,0.3215722]
[1754428607904,0.72623,113730.0,113720.0,0.78931753]
[1754428610809,0.36543,113730.0,113720.0,0.78931753]
[1754428611101,0.36543,113730.0,113720.0,0.3215722]
[1754428611298,0.3618,113730.0,113720.0,0.78931753]
[1754428612798,0.3608,113740.0,113730.0,0.2308395]
[1754428612996,0.5366486,113750.0,113740.0,0.316344]
[1754428614203,0.5386486,113750.0,113740.0,0.316344]
[1754428614903,1.00639393,113750.0,113740.0,0.316344]
[1754428616198,1.00739393,113750.0,113740.0,0.38730291]
[1754428618805,1.00739393,113750.0,113740.0,0.65020291]
[1754428619105,0.3638,113750.0,113740.0,0.65020291]
[1754428621406,0.5396484,113750.0,113740.0,0.65020291]
[1754428621901,0.3638,113750.0,113740.0,0.65020291]
[1754428622405,0.3638,113750.0,113740.0,1.11794824]
[1754428622608,0.003,113750.0,113740.0,1.41794824]
[1754428622796,0.3608,113770.0,113760.0,0.3163129]
[1754428623109,0.3608,113770.0,113760.0,0.9193129]
[1754428623409,0.5366175,113770.0,113760.0,0.9193129]
[1754428625110,0.5376175,113770.0,113760.0,0.9193129]
[1754428625508,1.00536283,113770.0,113760.0,0.9193129]
[1754428625811,1.00636283,113770.0,113760.0,0.9193129]
[1754428628001,0.5386175,113770.0,113760.0,0.9193129]
[1754428633015,1.00636283,113770.0,113760.0,0.9193129]
[1754428633508,0.5386175,113770.0,113760.0,0.9193129]
[1754428634214,0.8994175,113770.0,113760.0,0.9193129]
[1754428635822,1.36716283,113770.0,113760.0,0.9193129]
[1754428637626,0.7236,113770.0,113760.0,0.9193129]
[1754428639720,0.7236,113770.0,113760.0,1.64995823]
[1754428639921,0.3628,113770.0,113760.0,1.64995823]
[1754428640216,0.002,113770.0,113760.0,1.64995823]
[1754428640520,0.002,113770.0,113760.0,2.86567823]
[1754428641111,0.3628,113770.0,113760.0,2.86567823]
[1754428641516,0.002,113770.0,113760.0,2.86567823]
[1754428642019,0.001,113770.0,113760.0,2.86567823]
[1754428642521,0.3608,113780.0,113770.0,0.230652]
[1754428642708,0.3608,113780.0,113770.0,0.575632]
[1754428643108,0.3608,113780.0,113770.0,0.57875578]
[1754428644508,0.3618,113780.0,113770.0,0.57875578]
[1754428645919,0.5376064,113780.0,113770.0,0.57875578]
[1754428646117,0.3618,113780.0,113770.0,0.57875578]
[1754428646920,0.5376079,113780.0,113770.0,0.57875578]
[1754428647220,0.5386079,113780.0,113770.0,0.57875578]
[1754428647417,0.3628,113780.0,113770.0,0.57875578]
[1754428648527,0.5386078,113780.0,113770.0,0.57875578]
[1754428648724,0.3628,113780.0,113770.0,0.57875578]
[1754428652521,0.5386079,113780.0,113770.0,0.57875578]
[1754428655521,1.00635323,113780.0,113770.0,1.18359578]
[1754428657726,1.00635323,113780.0,113770.0,0.57875578]
[1754428657927,1.00635323,113780.0,113770.0,1.18355578]
[1754428660228,1.00635323,113780.0,113770.0,0.92065578]
[1754428661630,0.83054533,113780.0,113770.0,0.92065578]
[1754428661824,0.3628,113780.0,113770.0,1.38840111]
[1754428663118,0.3628,113780.0,113770.0,1.49905447]
[1754428663322,0.3618,113780.0,113770.0,1.49905447]
[1754428664028,0.3608,113780.0,113770.0,1.49905447]
[1754428666128,0.3608,113780.0,113770.0,1.76195447]
[1754428667239,0.3608,113790.0,113780.0,0.2306379]
[1754428667435,0.3608,113790.0,113780.0,0.3127179]
[1754428668336,0.3608,113790.0,113780.0,0.78046323]
[1754428669139,0.5365923,113790.0,113780.0,0.3127179]
[1754428669438,0.5385923,113790.0,113780.0,0.3127179]
[1754428674441,0.3628,113790.0,113780.0,0.3127179]
[1754428675649,0.3628,113790.0,113780.0,0.78046323]
[1754428676547,0.3628,113790.0,113780.0,0.3127179]
[1754428677054,0.5385922,113790.0,113780.0,0.3127179]
[1754428677946,0.5385922,113790.0,113780.0,0.5756179]
[1754428680542,0.3628,113790.0,113780.0,0.5756179]
[1754428680851,0.5385925,113790.0,113780.0,0.5756179]
[1754428681451,0.5385925,113790.0,113780.0,1.04336323]
[1754428682652,0.5385925,113790.0,113780.0,0.5756179]
[1754428686652,1.00633783,113790.0,113780.0,1.1200979]
[1754428686855,1.00633783,113790.0,113780.0,1.1768679]
[1754428687048,1.00633783,113790.0,113780.0,1.1768279]
[1754428688059,0.5385925,113790.0,113780.0,1.1768279]
[1754428689754,0.5385925,113790.0,113780.0,0.9139279]
[1754428693256,1.00633783,113790.0,113780.0,0.9139279]
[1754428694162,0.3628,113790.0,113780.0,0.9139279]
[1754428694756,0.5385923,113790.0,113780.0,0.9139279]
[1754428698667,1.06445426,113790.0,113780.0,1.43978986]
[1754428702263,0.88866196,113790.0,113780.0,1.43978986]
[1754428702466,0.3628,113790.0,113780.0,1.55044322]
[1754428705866,0.3618,113790.0,113780.0,1.55044322]
[1754428706171,0.3608,113790.0,113780.0,1.55044322]
[1754428708675,0.3618,113790.0,113780.0,1.55044322]
[1754428709568,0.3628,113790.0,113780.0,1.55044322]
[1754428710674,0.3628,113790.0,113780.0,1.81334322]
[1754428712972,0.3608,113800.0,113790.0,0.2303821]
[1754428713169,0.3608,113800.0,113790.0,1.36239602]
[1754428713370,0.3608,113810.0,113800.0,0.2303667]
[1754428713571,0.3608,113810.0,113800.0,1.43883866]
[1754428714176,0.88666196,113810.0,113800.0,1.43883866]
[1754428714372,1.06242326,113810.0,113800.0,1.43883866]
[1754428714775,0.5425613,113810.0,113800.0,0.9129767]
[1754428715979,0.5435613,113810.0,113800.0,0.9129767]
[1754428716772,0.5435613,113810.0,113800.0,0.98307154]
[1754428717076,0.5375613,113810.0,113800.0,0.98291154]
[1754428717275,0.5375613,113810.0,113800.0,0.38075154]
[1754428717475,0.5375613,113810.0,113800.0,0.98283154]
[1754428718078,0.8983613,113810.0,113800.0,0.98283154]
[1754428719177,0.8983615,113810.0,113800.0,0.98283154]
[1754428720276,0.5375615,113810.0,113800.0,0.98283154]
[1754428722084,0.5407615,113810.0,113800.0,0.98283154]
[1754428725986,1.00800239,113810.0,113800.0,0.98283154]
[1754428726788,1.01000239,113810.0,113800.0,0.92643154]
[1754428727184,1.01000239,113810.0,113800.0,0.95871154]
[1754428727391,1.01000239,113810.0,113800.0,0.98227154]
[1754428728087,1.01000239,113810.0,113800.0,0.38075154]
[1754428728286,1.01000239,113810.0,113800.0,0.09454484]
[1754428728487,1.01000239,113810.0,113800.0,0.69606484]
[1754428730084,1.01000239,113810.0,113800.0,0.69610484]
[1754428730689,1.01000239,113810.0,113800.0,0.62601]
[1754428731080,1.01000239,113810.0,113800.0,0.02445]
[1754428731276,1.01000239,113810.0,113800.0,0.62601]
[1754428731986,1.01000239,113810.0,113800.0,0.60156]
[1754428732288,1.01000239,113810.0,113800.0,0.62502]
[1754428733792,1.01000239,113810.0,113800.0,0.8559464]
[1754428733979,1.00800239,113810.0,113800.0,0.9151564]
[1754428736590,1.00800239,113810.0,113800.0,0.3135964]
[1754428736792,1.00800239,113810.0,113800.0,0.9154364]
[1754428737194,1.00800239,113810.0,113800.0,0.3135964]
[1754428737392,1.00800239,113810.0,113800.0,0.9154364]
[1754428740192,0.5407615,113810.0,113800.0,0.9154364]
[1754428740496,0.5407615,113810.0,113800.0,0.3135964]
[1754428740694,0.5407615,113810.0,113800.0,0.9153164]
[1754428741490,0.5375615,113810.0,113800.0,0.9153164]
[1754428741998,0.5407615,113810.0,113800.0,0.3135964]
[1754428742200,0.5407615,113810.0,113800.0,0.9152364]
[1754428742601,0.5375615,113810.0,113800.0,0.9152364]
[1754428742801,1.06326969,113810.0,113800.0,1.44094459]
[1754428743804,0.5407615,113810.0,113800.0,1.44094459]
[1754428743999,0.5375611,113810.0,113800.0,1.44094459]
[1754428744304,0.3618,113810.0,113800.0,1.44094459]
[1754428744904,0.3618,113810.0,113800.0,1.51163583]
[1754428744905,0.5375611,113810.0,113800.0,1.51163583]
[1754428745310,1.06326929,113810.0,113800.0,1.51163583]
[1754428745814,0.5375611,113810.0,113800.0,1.51163583]
[1754428746012,1.06326929,113810.0,113800.0,1.51163583]
[1754428746608,0.5375611,113810.0,113800.0,0.98592764]
[1754428748614,0.3618,113810.0,113800.0,0.98592764]
[1754428748814,0.5375603,113810.0,113800.0,0.98592764]
[1754428750217,0.3618,113810.0,113800.0,0.98592764]
[1754428752710,0.3618,113810.0,113800.0,1.45316245]
[1754428754916,0.3618,113810.0,113800.0,1.71606245]
[1754428757333,0.5375603,113810.0,113800.0,1.24882764]
[1754428757626,0.5407603,113810.0,113800.0,1.24870764]
[1754428758131,0.5407603,113810.0,113800.0,0.64718764]
[1754428758330,0.5407603,113810.0,113800.0,1.24866764]
[1754428759619,0.3608,113820.0,113810.0,0.1757603]
[1754428759824,0.3608,113830.0,113820.0,0.2308948]
[1754428760026,0.3608,113840.0,113830.0,0.3135494]
[1754428760229,0.3608,113840.0,113830.0,0.31786787]
[1754428760633,0.3608,113840.0,113830.0,0.78510268]
[1754428762524,0.3618,113840.0,113830.0,0.78510268]
[1754428764520,0.001,113840.0,113830.0,2.00022268]
[1754428764725,0.002,113840.0,113830.0,2.00022268]
[1754428769736,0.5385138,113840.0,113830.0,2.00022268]
[1754428772130,0.5417138,113840.0,113830.0,2.00022268]
[1754428772326,0.5417138,113840.0,113830.0,1.53298787]
[1754428772636,0.5417138,113840.0,113830.0,2.13662787]
[1754428773346,0.5385138,113840.0,113830.0,2.60386268]
[1754428774445,0.3628,113840.0,113830.0,2.60386268]
[1754428775538,0.5385141,113840.0,113830.0,2.60386268]
[1754428777244,0.3628,113840.0,113830.0,2.60386268]
[1754428777839,0.5385141,113840.0,113830.0,2.60386268]
[1754428778045,0.3628,113840.0,113830.0,2.60386268]
[1754428778442,0.002,113840.0,113830.0,2.60386268]
[1754428780744,0.3628,113840.0,113830.0,2.60386268]
[1754428781446,0.002,113840.0,113830.0,2.86676268]
[1754428783148,0.001,113840.0,113830.0,2.86676268]
[1754428783341,0.001,113840.0,113830.0,2.86776268]
[1754428783546,0.3608,113850.0,113840.0,0.3059141]
[1754428783745,0.3608,113850.0,113840.0,0.77314891]
[1754428785148,0.3618,113850.0,113840.0,0.77314891]
[1754428786449,0.001,113850.0,113840.0,0.77314891]
[1754428786951,0.3618,113850.0,113840.0,0.77314891]
[1754428787151,0.001,113850.0,113840.0,0.77314891]
[1754428787450,0.3618,113850.0,113840.0,1.03604891]
[1754428787749,0.001,113850.0,113840.0,1.03604891]
[1754428787950,0.3618,113850.0,113840.0,1.03604891]
[1754428790350,0.001,113850.0,113840.0,1.50328372]
[1754428790652,0.001,113850.0,113840.0,1.03704891]
[1754428791248,0.3608,113860.0,113850.0,0.2280084]
[1754428791451,0.3608,113860.0,113850.0,1.37701321]
[1754428792153,0.3656,113860.0,113850.0,1.37701321]
[1754428792556,0.542283,113860.0,113850.0,1.37701321]
[1754428792756,0.3666,113860.0,113850.0,1.37701321]
[1754428793550,0.3618,113860.0,113850.0,1.37701321]
[1754428794651,0.001,113860.0,113850.0,1.37701321]
[1754428795356,0.3618,113860.0,113850.0,1.37701321]
[1754428795659,0.3618,113860.0,113850.0,1.37801321]
[1754428796356,0.5374829,113860.0,113850.0,1.37801321]
[1754428796557,0.5422829,113860.0,113850.0,1.37801321]
[1754428796745,0.3666,113860.0,113850.0,1.37801321]
[1754428797759,0.3656,113860.0,113850.0,1.37901321]
[1754428797958,0.3608,113860.0,113850.0,1.37901321]
[1754428798355,0.3608,113860.0,113850.0,1.37801321]
[1754428799260,0.3618,113860.0,113850.0,1.63991321]
[1754428799861,0.5374829,113860.0,113850.0,1.63991321]
[1754428800957,0.3618,113860.0,113850.0,1.63991321]
[1754428802864,0.3608,113860.0,113850.0,1.37701321]
[1754428803064,0.3608,113870.0,113860.0,0.3107132]
[1754428803265,0.3608,113870.0,113860.0,0.77794801]
[1754428804767,0.5364678,113870.0,113860.0,0.84922251]
[1754428805265,0.5374678,113870.0,113860.0,0.84922251]
[1754428805468,0.5422678,113870.0,113860.0,0.84922251]
[1754428808459,0.3666,113870.0,113860.0,0.84922251]
[1754428808969,0.5422675,113870.0,113860.0,0.84922251]
[1754428809866,0.3666,113870.0,113860.0,0.84922251]
[1754428810065,0.5422675,113870.0,113860.0,0.84922251]
[1754428811172,0.3666,113870.0,113860.0,0.84922251]
[1754428812370,0.5422676,113870.0,113860.0,0.84922251]
[1754428813476,0.3666,113870.0,113860.0,0.84922251]
[1754428814676,0.3618,113870.0,113860.0,0.84922251]
[1754428816384,0.3608,113870.0,113860.0,0.84922251]
[1754428816579,0.3608,113870.0,113860.0,0.95987587]
[1754428816773,0.3608,113870.0,113860.0,0.96087587]
[1754428817374,0.3608,113870.0,113860.0,0.85022251]
[1754428819982,0.3608,113870.0,113860.0,1.11312251]
[1754428823284,0.3608,113870.0,113860.0,2.32768251]
[1754428823479,0.5364676,113870.0,113860.0,1.8604477]
[1754428823676,0.5364676,113870.0,113860.0,2.32768251]
[1754428825084,0.5364675,113870.0,113860.0,2.32768251]
[1754428825276,0.3608,113870.0,113860.0,2.32768251]
[1754428825679,0.3608,113870.0,113860.0,2.93024251]
[1754428825882,0.5364678,113870.0,113860.0,2.93024251]
[1754428826184,0.1756678,113870.0,113860.0,2.93024251]
[1754428826488,0.5364678,113870.0,113860.0,2.93024251]
[1754428827891,0.3608,113870.0,113860.0,2.93024251]
[1754428830994,0.3608,113870.0,113860.0,3.04089587]
[1754428831194,0.5364677,113870.0,113860.0,3.04089587]
[1754428834096,0.3608,113870.0,113860.0,3.04089587]
[1754428838697,0.5412627,113880.0,113870.0,0.2290477]
[1754428838899,0.5412627,113880.0,113870.0,0.77581251]
[1754428840990,0.5422627,113880.0,113870.0,0.77581251]
[1754428844404,0.3618,113880.0,113870.0,0.77581251]
[1754428846102,0.3608,113880.0,113870.0,0.77681251]
[1754428846302,0.5364517,113880.0,113870.0,0.77681251]
[1754428847610,0.5412517,113880.0,113870.0,0.77681251]
[1754428848105,0.5422517,113880.0,113870.0,0.77581251]
[1754428849108,0.5422517,113880.0,113870.0,0.8541177]
[1754428849312,0.5422517,113880.0,113870.0,0.9103777]
[1754428850213,0.5422517,113880.0,113870.0,1.37761251]
[1754428851317,0.3666,113880.0,113870.0,1.37761251]
[1754428852315,0.5422521,113880.0,113870.0,1.37761251]
[1754428852507,0.5422521,113880.0,113870.0,0.9103777]
[1754428852813,0.5422521,113880.0,113870.0,1.37761251]
[1754428853014,0.5422521,113880.0,113870.0,1.37825231]
[1754428853208,0.5452521,113880.0,113870.0,1.37825231]
[1754428854414,0.5422521,113880.0,113870.0,1.37825231]
[1754428856017,0.9030521,113880.0,113870.0,1.37825231]
[1754428856914,0.9030521,113880.0,113870.0,0.9110175]
[1754428857212,0.9030521,113880.0,113870.0,1.37825231]
[1754428857613,0.7226,113880.0,113870.0,1.37825231]
[1754428858110,0.3618,113880.0,113870.0,1.37825231]
[1754428859219,0.5364521,113880.0,113870.0,1.37825231]
[1754428860516,0.5364521,113880.0,113870.0,1.37925231]
[1754428861222,0.5364521,113880.0,113870.0,1.37825231]
[1754428861519,0.5364521,113880.0,113870.0,1.37925231]
[1754428862918,0.5364521,113880.0,113870.0,0.9120175]
[1754428863223,0.5412521,113880.0,113870.0,1.37925231]
[1754428864023,0.5412521,113880.0,113870.0,1.37825231]
[1754428864317,0.5422521,113880.0,113870.0,1.37825231]
[1754428865923,0.9030521,113880.0,113870.0,1.37825231]
[1754428866124,0.9030521,113880.0,113870.0,1.37813231]
[1754428874230,0.9030521,113880.0,113870.0,1.37765231]
[1754428874831,0.9030521,113880.0,113870.0,0.8539975]
[1754428875036,0.9060521,113880.0,113870.0,0.9081574]
[1754428876837,0.9030521,113880.0,113870.0,0.07665]
[1754428877136,1.37328691,113880.0,113870.0,0.8031775]
[1754428877735,0.9060521,113880.0,113870.0,0.8031775]
[1754428877937,0.9060521,113880.0,113870.0,0.8179375]
[1754428878329,0.9060521,113880.0,113870.0,0.64227]
[1754428878829,0.9060521,113880.0,113860.0,1.7682035]
[1754428878830,0.1804675,113870.0,113860.0,1.7682035]
[1754428879022,0.5442675,113870.0,113860.0,2.4169035]
[1754428879222,0.5442675,113870.0,113860.0,2.1863035]
[1754428879432,0.5412675,113870.0,113860.0,2.1863035]
[1754428880828,0.5412675,113870.0,113860.0,2.1873035]
[1754428881736,0.5412675,113870.0,113860.0,2.65453831]
[1754428884638,0.5412675,113870.0,113860.0,2.71240328]
[1754428888743,0.5364674,113870.0,113860.0,2.71240328]
[1754428889038,0.3608,113870.0,113860.0,2.71240328]
[1754428890645,0.3608,113870.0,113860.0,2.65391024]
[1754428891640,0.5803659,113880.0,113870.0,0.2124575]
[1754428891844,0.5364527,113880.0,113870.0,0.77435424]
[1754428892343,0.3608,113880.0,113870.0,0.77435424]
[1754428893038,0.3618,113880.0,113870.0,0.77435424]
[1754428893536,0.3608,113880.0,113870.0,0.77435424]
[1754428894239,0.3608,113880.0,113870.0,0.77535424]
[1754428896346,0.2634694,113890.0,113880.0,0.3077319]
[1754428896539,0.6242694,113890.0,113880.0,1.37757864]
[1754428896738,0.6242694,113890.0,113880.0,0.9109719]
[1754428897045,0.6242694,113890.0,113880.0,1.37757864]
[1754428898543,0.6242694,113890.0,113880.0,1.3840848]
[1754428898745,0.6252694,113890.0,113880.0,1.3840848]
[1754428900445,0.5813592,113890.0,113880.0,1.3840848]
[1754428900650,0.3618,113890.0,113880.0,1.3840848]
[1754428902549,0.3618,113890.0,113880.0,1.3850848]
[1754428904752,0.3618,113890.0,113880.0,1.85169154]
[1754428905053,0.3618,113890.0,113880.0,1.3850848]
[1754428905850,0.5364335,113900.0,113890.0,0.2279666]
[1754428906154,0.5364335,113900.0,113890.0,0.77432334]
[1754428906554,0.5412335,113900.0,113890.0,0.77432334]
[1754428906956,0.5422335,113900.0,113890.0,0.77432334]
[1754428910670,0.5422335,113900.0,113890.0,0.83249951]
[1754428913664,0.5422335,113900.0,113890.0,0.75534951]
[1754428913869,1.07001641,113900.0,113890.0,1.43378951]
[1754428914668,0.5452335,113900.0,113890.0,0.9090066]
[1754428917470,0.5422335,113900.0,113890.0,0.9090066]
[1754428920670,0.1814335,113900.0,113890.0,0.9090066]
[1754428920869,0.9030335,113900.0,113890.0,0.9090066]
[1754428922273,0.9030335,113900.0,113890.0,0.77290604]
[1754428922466,0.9030335,113900.0,113890.0,0.9084866]
[1754428922666,0.9060335,113900.0,113890.0,0.9084866]
[1754428923269,0.9030335,113900.0,113890.0,0.9084866]
[1754428925078,0.1814335,113900.0,113890.0,0.9084866]
[1754428925278,0.9030335,113900.0,113890.0,0.9084866]
[1754428927787,0.9030335,113900.0,113890.0,1.37502604]
[1754428930077,0.9030335,113900.0,113890.0,0.3063666]
[1754428930380,0.9030335,113900.0,113890.0,0.9081266]
[1754428934780,1.42790243,113900.0,113890.0,1.43299553]
[1754428937481,0.9030335,113900.0,113890.0,1.43299553]
[1754428937682,1.42790243,113900.0,113890.0,1.43299553]
[1754428944086,1.42790243,113900.0,113890.0,0.9081266]
[1754428944482,1.42790243,113900.0,113890.0,1.43299553]
[1754428946690,1.42790243,113900.0,113890.0,0.83123553]
[1754428946894,1.42790243,113900.0,113890.0,1.43299553]
[1754428950699,1.42790243,113900.0,113890.0,0.9081266]
[1754428951104,1.42790243,113900.0,113890.0,1.43299553]
[1754428951897,0.9030335,113900.0,113890.0,1.43299553]
[1754428952298,1.42790243,113900.0,113890.0,1.43299553]
[1754428975834,1.42790243,113900.0,113890.0,1.50192623]
[1754428977533,1.42790243,113900.0,113890.0,1.50893372]
[1754428980136,0.70630243,113900.0,113890.0,1.50893372]
[1754428980429,1.42790243,113900.0,113890.0,0.73233]
[1754428980632,1.43090243,113900.0,113890.0,0.73233]
[1754428980830,1.43090243,113900.0,113890.0,0.10991]
[1754428981035,0.1834365,113890.0,113880.0,0.14716943]
[1754428981240,1.06910543,113890.0,113880.0,0.63832]
[1754428982328,1.06910543,113890.0,113880.0,0.63932]
[1754428983428,1.06910543,113890.0,113880.0,0.69343]
[1754428984126,1.06910543,113890.0,113880.0,0.73088]
[1754428985348,1.06610543,113890.0,113880.0,0.001]
[1754428985638,1.06610543,113890.0,113880.0,0.6026]
[1754428985639,1.24472143,113890.0,113880.0,0.6026]
[1754428986138,1.76959036,113890.0,113880.0,0.62572]
[1754428986734,1.24472143,113890.0,113880.0,0.62572]
[1754428986935,1.24972143,113890.0,113880.0,0.62572]
[1754428987540,1.24972143,113890.0,113880.0,0.62472]
[1754428987841,1.25372143,113890.0,113880.0,0.62472]
[1754428988327,1.61452143,113890.0,113880.0,0.62472]
[1754428989139,0.1834507,113880.0,113870.0,1.21432]
[1754428989333,1.59398856,113880.0,113870.0,1.83904]
[1754428989940,1.60077666,113880.0,113870.0,1.83904]
[1754428990638,1.60577666,113880.0,113870.0,1.83904]
[1754428991039,1.60877666,113880.0,113870.0,1.83904]
[1754428992641,1.60877666,113880.0,113870.0,1.89315]
[1754428993746,1.60577666,113880.0,113870.0,1.81592]
[1754428993947,1.60877666,113880.0,113870.0,1.89315]
[1754428994460,1.60198856,113880.0,113870.0,1.89315]
[1754428996249,1.96278856,113880.0,113870.0,1.89315]
[1754428997649,1.96278856,113880.0,113870.0,0.72988]
[1754428998051,1.96967887,113880.0,113870.0,0.72988]
[1754428998550,1.96967887,113880.0,113870.0,0.73679739]
[1754429002447,1.96667887,113880.0,113870.0,0.66565739]
[1754429002652,1.96967887,113880.0,113870.0,0.62423]
[1754429002849,0.3561762,113860.0,113850.0,0.12759]
[1754429003056,1.60264513,113860.0,113850.0,0.72915]
[1754429004347,1.60264513,113860.0,113850.0,0.73015]
[1754429004641,1.59784513,113860.0,113850.0,1.43071573]
[1754429004846,1.59784513,113860.0,113850.0,1.25501893]
[1754429005151,1.59784513,113860.0,113850.0,1.43071573]
[1754429005554,1.59784513,113860.0,113850.0,1.42971573]
[1754429005851,1.59884513,113860.0,113850.0,1.42971573]
[1754429008144,1.0300524,113860.0,113850.0,1.35302466]
[1754429008345,1.0300524,113860.0,113850.0,1.95462466]
[1754429008546,1.0300524,113860.0,113850.0,1.42975573]
[1754429009953,1.0300524,113860.0,113850.0,0.9048868]
[1754429010159,1.55492133,113860.0,113850.0,1.42975573]
[1754429010656,1.0300524,113860.0,113850.0,0.9048868]
[1754429015058,1.0300524,113860.0,113850.0,1.37175106]
[1754429015557,1.0300524,113860.0,113850.0,0.9048868]
[1754429021660,1.0348524,113860.0,113850.0,0.9048868]
[1754429023975,1.0348524,113860.0,113850.0,0.72919]
[1754429025875,1.0348524,113860.0,113850.0,0.6742]
[1754429026074,1.0348524,113860.0,113850.0,0.72919]
[1754429029080,1.0348524,113860.0,113850.0,0.72911]
[1754429029473,1.0348524,113860.0,113850.0,0.9048069]
[1754429032778,1.5600791,113860.0,113850.0,1.4300336]
[1754429037384,1.5552791,113860.0,113850.0,1.4300336]
[1754429037578,1.0300524,113860.0,113850.0,1.4300336]
[1754429038484,1.0300524,113860.0,113850.0,0.9048069]
[1754429038683,1.5552791,113860.0,113850.0,0.9048069]
[1754429039785,1.0300524,113860.0,113850.0,0.9048069]
[1754429039986,1.5552791,113860.0,113850.0,1.4300336]
[1754429043189,0.8384791,113860.0,113850.0,1.4300336]
[1754429043383,1.5600791,113860.0,113850.0,1.4300336]
[1754429045288,0.8384791,113860.0,113850.0,1.4300336]
[1754429045494,1.5600791,113860.0,113850.0,1.4300336]
[1754429046695,1.0348524,113860.0,113850.0,1.4300336]
[1754429046890,1.5600791,113860.0,113850.0,1.4300336]
[1754429048991,0.8384791,113860.0,113850.0,1.4300336]
[1754429049192,1.5600791,113860.0,113850.0,1.4300336]
[1754429050697,1.5600791,113860.0,113850.0,1.4364836]
[1754429058296,1.0348524,113860.0,113850.0,1.4364836]
[1754429058599,1.5600791,113860.0,113850.0,1.4364836]
[1754429059004,0.8384791,113860.0,113850.0,1.4364836]
[1754429059201,1.5600791,113860.0,113850.0,1.4364836]
[1754429076129,0.8384791,113860.0,113850.0,1.4364836]
[1754429076329,1.5600791,113860.0,113850.0,1.4364836]
[1754429079432,0.9909286,113860.0,113850.0,1.4364836]
[1754429079628,1.5161553,113860.0,113850.0,1.4364836]
[1754429080030,0.9909286,113860.0,113850.0,1.4364836]
[1754429080335,1.5161553,113860.0,113850.0,1.4364836]
[1754429082435,1.5161553,113860.0,113850.0,0.9112569]
[1754429082636,1.5161553,113860.0,113850.0,1.4364836]
[1754429083134,0.9909286,113860.0,113850.0,1.4364836]
[1754429083436,1.5161553,113860.0,113850.0,1.4364836]
[1754429086132,1.1553553,113860.0,113850.0,1.4364836]
[1754429086347,1.5161553,113860.0,113850.0,1.4364836]
[1754429087138,0.7945553,113860.0,113850.0,1.4364836]
[1754429087338,1.5161553,113860.0,113850.0,1.4364836]
[1754429088141,0.7945553,113860.0,113850.0,1.4364836]
[1754429088340,1.5161553,113860.0,113850.0,1.4364836]
[1754429088941,0.7945553,113860.0,113850.0,1.4364836]
[1754429089149,1.5161553,113860.0,113850.0,1.4364836]
[1754429091337,1.5161553,113860.0,113850.0,0.9112569]
[1754429091542,1.5161553,113860.0,113850.0,1.4364836]
[1754429093242,0.7945553,113860.0,113850.0,1.4364836]
[1754429093435,1.5161553,113860.0,113850.0,1.4364836]
[1754429093843,1.5161553,113860.0,113850.0,0.9112569]
[1754429094142,1.5161553,113860.0,113850.0,1.4364836]
[1754429098848,0.9909286,113860.0,113850.0,1.4364836]
[1754429099047,0.9422048,113860.0,113850.0,1.9617103]
[1754429099250,0.8982809,113860.0,113850.0,1.9617103]
[1754429102156,0.8982809,113860.0,113850.0,0.9112569]
[1754429102346,0.8982809,113860.0,113850.0,1.9617103]
[1754429105058,0.7226,113860.0,113850.0,2.2246103]
[1754429106861,0.7226,113860.0,113850.0,1.9617103]
[1754429109251,0.3618,113860.0,113850.0,1.9617103]
[1754429109453,0.001,113860.0,113850.0,1.9617103]
[1754429112862,0.001,113860.0,113850.0,2.2246103]
[1754429121575,0.3608,113870.0,113860.0,0.8241475]
[1754429123269,0.3608,113870.0,113860.0,1.0870475]
[1754429123468,0.3608,113870.0,113860.0,1.6122742]
[1754429123668,0.3638,113870.0,113860.0,1.0870475]
[1754429125764,0.3678,113870.0,113860.0,1.0935075]
[1754429126574,0.007,113870.0,113860.0,1.0935075]
[1754429130083,0.3678,113870.0,113860.0,1.0935075]
[1754429131486,0.007,113870.0,113860.0,1.0935075]
[1754429132589,0.007,113870.0,113860.0,0.5682808]
[1754429132777,0.007,113870.0,113860.0,1.0935075]
[1754429133673,0.3678,113870.0,113860.0,1.0935075]
[1754429133879,0.007,113870.0,113860.0,1.0935075]
[1754429136581,0.3678,113870.0,113860.0,1.0935075]
[1754429136784,0.007,113870.0,113860.0,1.0935075]
[1754429137686,0.6290639,113890.0,113880.0,0.2272897]
[1754429137987,0.6290639,113890.0,113880.0,1.9537231]
[1754429138486,0.6290639,113890.0,113880.0,1.43642826]
[1754429139578,0.6380639,113890.0,113880.0,1.43642826]
[1754429143492,0.6410639,113890.0,113880.0,1.38513826]
[1754429143981,0.6410639,113890.0,113880.0,1.43642826]
[1754429144182,0.6380639,113890.0,113880.0,1.43642826]
[1754429144483,1.1632906,113890.0,113880.0,1.43642826]
[1754429146490,0.6380639,113890.0,113880.0,1.43642826]
[1754429146691,1.1632906,113890.0,113880.0,1.43642826]
[1754429146990,0.8024906,113890.0,113880.0,1.43642826]
[1754429147182,1.5240906,113890.0,113880.0,1.43642826]
[1754429148693,1.5210906,113890.0,113880.0,1.43642826]
[1754429149587,1.5170906,113890.0,113880.0,1.43642826]
[1754429149789,1.5160906,113890.0,113880.0,1.43642826]
[1754429149990,1.5160906,113890.0,113880.0,1.43742826]
[1754429150190,1.5150906,113890.0,113880.0,1.43942826]